bitfinex/quotes_SOLUSD_20250518
["timestamp","ask_amount","ask_price","bid_price","bid_amount"]
[1747548880872,10.01306283,169.71,169.67,26.0]
[1747548881510,10.01306283,169.7,169.65,5.89440506]
[1747548881709,10.01306283,169.69,169.64,24.71483107]
[1747548882010,10.01306283,169.69,169.64,50.71483107]
[1747548884409,11.91191674,169.71,169.64,50.71483107]
[1747548884595,10.01306283,169.69,169.64,50.71483107]
[1747548889593,10.01306283,169.71,169.65,18.64964886]
[1747548890007,5.89143216,169.74,169.65,18.64964886]
[1747548890206,5.89143216,169.74,169.67,18.64964886]
[1747548890414,15.90449499,169.74,169.67,18.64964886]
[1747548890592,10.01306283,169.73,169.67,18.64964886]
[1747548890999,10.01306283,169.72,169.67,18.64964886]
[1747548892904,10.01306283,169.72,169.68,5.89344648]
[1747548893215,10.01306283,169.73,169.68,5.89344648]
[1747548894215,10.01306283,169.73,169.67,5.8936937]
[1747548894921,15.90483911,169.73,169.67,5.8936937]
[1747548895624,10.01306283,169.72,169.67,5.8936937]
[1747548896314,15.90513101,169.72,169.67,5.8936937]
[1747548896515,10.01306283,169.71,169.66,5.89407276]
[1747548896698,10.01306283,169.7,169.66,5.89407276]
[1747548897095,10.01306283,169.71,169.66,5.89407276]
[1747548899217,10.01306283,169.72,169.66,5.89407276]
[1747548900125,5.8918251,169.73,169.66,5.89407276]
[1747548900298,10.01306283,169.72,169.66,5.89407276]
[1747548901409,10.01306283,169.74,169.66,5.89407276]
[1747548901933,168.98814281,169.75,169.66,5.89407276]
[1747548902098,10.01306283,169.73,169.66,5.89407276]
[1747548902299,10.01306283,169.71,169.66,5.89407276]
[1747548902516,10.01306283,169.72,169.67,18.64964886]
[1747548903630,10.01306283,169.72,169.68,5.89344648]
[1747548907423,5.89155045,169.74,169.68,5.89344648]
[1747548907615,10.01306283,169.72,169.68,5.89344648]
[1747548907937,10.01306283,169.71,169.67,24.54342045]
[1747548908310,5.89143136,169.74,169.67,24.54342045]
[1747548908511,10.01306283,169.71,169.67,24.54342045]
[1747548910622,5.89181542,169.73,169.67,24.54342045]
[1747548910804,10.01306283,169.71,169.67,24.54342045]
[1747548916612,10.01306283,169.72,169.67,24.54342045]
[1747548917239,6.39756204,169.74,169.67,50.54342045]
[1747548917446,25.19756204,169.75,169.67,52.15622045]
[1747548918127,6.39756204,169.74,169.67,66.89070503]
[1747548918940,6.39756204,169.73,169.67,66.89070503]
[1747548919147,6.39756204,169.73,169.67,71.08852295]
[1747548919448,9.99674077,169.73,169.67,71.08852295]
[1747548919744,9.99674077,169.73,169.67,56.35403837]
[1747548919926,9.99674077,169.72,169.67,56.35403837]
[1747548920113,5.8914928,169.74,169.67,56.35403837]
[1747548920309,9.99674077,169.72,169.67,56.35403837]
[1747548921851,9.99674077,169.73,169.67,56.35403837]
[1747548923544,9.99674077,169.74,169.67,56.35403837]
[1747548924341,9.99674077,169.74,169.69,5.89309918]
[1747548924542,24.69112624,169.75,169.69,5.89309918]
[1747548924723,9.99674077,169.75,169.7,18.64964886]
[1747548924939,5.89059662,169.77,169.7,18.64964886]
[1747548925236,9.99674077,169.76,169.7,18.64964886]
[1747548925435,9.99674077,169.77,169.7,18.64964886]
[1747548926753,9.99674077,169.77,169.71,5.89240469]
[1747548926939,138.2,169.79,169.73,18.64964886]
[1747548927261,9.99674077,169.8,169.73,44.64964886]
[1747548927426,9.99674077,169.79,169.73,44.64964886]
[1747548927832,9.91157069,169.82,169.73,44.64964886]
[1747548928038,9.99674077,169.8,169.73,44.64964886]
[1747548928248,9.99674077,169.79,169.73,44.64964886]
[1747548928771,9.99674077,169.79,169.74,5.89136326]
[1747548928952,9.91157069,169.82,169.74,5.89136326]
[1747548929148,9.99674077,169.79,169.74,5.89136326]
[1747548929449,9.99674077,169.78,169.73,26.0]
[1747548930129,9.99674077,169.77,169.73,26.0]
[1747548931081,15.88721722,169.77,169.73,26.0]
[1747548932740,15.88666549,169.79,169.73,31.89166178]
[1747548933871,5.88992472,169.79,169.73,31.89166178]
[1747548934049,9.99674077,169.8,169.73,31.89166178]
[1747548935068,5.88962836,169.79,169.73,31.89166178]
[1747548935976,15.88636913,169.79,169.73,31.89166178]
[1747548936748,5.88962836,169.79,169.73,31.89166178]
[1747548939175,9.99674077,169.79,169.73,31.89166178]
[1747548941454,15.88641822,169.79,169.73,31.89166178]
[1747548942380,9.99674077,169.78,169.73,26.0]
[1747548942599,9.99674077,169.77,169.7,10.0904576]
[1747548942758,9.99674077,169.76,169.7,4.19781792]
[1747548942962,9.99674077,169.74,169.7,4.19781792]
[1747548943682,9.99674077,169.72,169.7,4.19781792]
[1747548944064,9.99674077,169.73,169.7,4.19781792]
[1747548944688,15.88826785,169.74,169.7,4.19781792]
[1747548945487,15.88787134,169.75,169.7,4.19781792]
[1747548946361,15.88787134,169.75,169.69,5.8928401]
[1747548948384,15.88787134,169.75,169.69,24.6528401]
[1747548948865,15.88815429,169.74,169.69,24.6528401]
[1747548949066,15.88815429,169.74,169.69,18.76]
[1747548949597,9.99674077,169.73,169.69,18.76]
[1747548949989,9.99674077,169.73,169.68,26.0]
[1747548950194,9.99674077,169.72,169.68,44.76]
[1747548950690,9.99674077,169.73,169.68,50.65344057]
[1747548951574,15.88850569,169.73,169.68,50.65344057]
[1747548951871,15.88813436,169.74,169.68,50.65344057]
[1747548956392,9.99674077,169.73,169.68,50.65344057]
[1747548956596,9.99674077,169.73,169.68,44.76]
[1747548957293,9.99674077,169.73,169.68,50.65342192]
[1747548957880,14.72709064,169.76,169.68,50.65342192]
[1747548958094,9.99674077,169.74,169.68,50.65342192]
[1747548958632,15.8884382,169.74,169.68,50.65342192]
[1747548959170,9.99674077,169.73,169.68,44.76]
[1747548959579,9.99674077,169.73,169.68,50.65341723]
[1747548960793,15.8884382,169.74,169.68,50.65341723]
[1747548966512,9.99674077,169.74,169.68,50.65341723]
[1747548968003,5.8903222,169.77,169.68,50.65341723]
[1747548968196,9.99674077,169.74,169.68,50.65341723]
[1747548970406,9.99674077,169.75,169.68,50.65341723]
[1747548971514,5.89136326,169.74,169.68,50.65341723]
[1747548971809,15.88781391,169.75,169.68,50.65341723]
[1747548972892,15.88747558,169.76,169.68,50.65341723]
[1747548973092,9.99674077,169.75,169.68,50.65341723]
[1747548973705,15.88776622,169.75,169.68,50.65341723]
[1747548973888,9.99674077,169.74,169.68,50.65341723]
[1747548974813,15.88811288,169.74,169.68,50.65341723]
[1747548975000,5.89137211,169.74,169.68,50.65341723]
[1747548975200,15.88811288,169.74,169.68,50.65341723]
[1747548977414,6.39759408,169.74,169.68,50.65341723]
[1747548978315,12.28903377,169.74,169.68,44.76]
[1747548978503,6.39759408,169.72,169.68,44.76]
[1747548978890,6.39759408,169.73,169.68,44.76]
[1747548979513,12.28953553,169.73,169.68,44.76]
[1747548980092,6.39759408,169.74,169.68,50.65341322]
[1747548982113,12.28895052,169.75,169.68,50.65341322]
[1747548983017,12.2883561,169.76,169.68,50.65341322]
[1747548983798,6.39759408,169.75,169.68,50.65341322]
[1747548984000,12.28879525,169.75,169.68,50.65341322]
[1747548984199,6.39759408,169.74,169.68,50.65341322]
[1747548985702,12.28897355,169.74,169.68,50.65341322]
[1747548985906,6.39759408,169.73,169.68,44.76]
[1747548986908,6.39759408,169.73,169.68,50.65342477]
[1747548987114,12.28936474,169.73,169.68,50.65342477]
[1747548987530,12.28936474,169.73,169.69,18.74]
[1747548992715,6.39759408,169.74,169.69,18.74]
[1747548992907,6.39759408,169.74,169.69,24.63307708]
[1747548993331,5.8903222,169.77,169.69,24.63307708]
[1747548993504,6.39759408,169.76,169.69,24.63307708]
[1747548993708,6.39759408,169.75,169.69,24.63307708]
[1747548994912,22.44020294,169.78,169.69,24.63307708]
[1747548994913,6.39759408,169.74,169.69,24.63307708]
[1747548996536,12.2891,169.74,169.69,24.63307708]
[1747548997019,6.39759408,169.74,169.69,24.63307708]
[1747548997325,12.28898816,169.74,169.69,24.63307708]
[1747548997728,6.39759408,169.74,169.69,24.63307708]
[1747549001136,5.89070678,169.76,169.69,24.63307708]
[1747549001324,6.39759408,169.74,169.69,24.63307708]
[1747549002334,6.39759408,169.75,169.69,24.63307708]
[1747549002533,6.39759408,169.75,169.69,28.830895]
[1747549009030,6.39759408,169.74,169.69,28.830895]
[1747549011811,6.39759408,169.75,169.69,28.830895]
[1747549013958,12.59409408,169.78,169.72,26.0]
[1747549014943,25.15759408,169.79,169.72,26.0]
[1747549015132,31.04733596,169.79,169.73,5.89171036]
[1747549016936,6.39759408,169.78,169.73,5.89171036]
[1747549019519,12.2876066,169.78,169.73,5.89171036]
[1747549019911,12.2876066,169.78,169.72,31.89194462]
[1747549020744,6.39759408,169.77,169.72,31.89194462]
[1747549021341,12.2876066,169.78,169.72,31.89194462]
[1747549022946,6.39759408,169.78,169.72,31.89194462]
[1747549023245,29.99614383,169.82,169.73,18.64964886]
[1747549023431,22.19784383,169.82,169.73,18.64964886]
[1747549023628,9.91157069,169.82,169.75,18.64964886]
[1747549023836,9.91157069,169.82,169.76,18.7]
[1747549024941,9.91157069,169.82,169.77,5.8903222]
[1747549025333,15.80021364,169.82,169.77,5.8903222]
[1747549026048,9.91157069,169.82,169.77,5.8903222]
[1747549027056,16.30916477,169.82,169.77,5.8903222]
[1747549027347,6.39759408,169.81,169.76,18.7]
[1747549027517,6.39759408,169.79,169.73,4.19781792]
[1747549027721,6.39759408,169.78,169.74,18.7]
[1747549028247,6.39759408,169.79,169.74,18.7]
[1747549028944,6.39759408,169.78,169.74,18.7]
[1747549029343,6.39759408,169.77,169.74,18.7]
[1747549029551,6.39759408,169.76,169.73,18.7]
[1747549030239,6.39759408,169.76,169.72,22.89781792]
[1747549031054,6.39759408,169.76,169.72,18.7]
[1747549031230,9.99394436,169.76,169.72,18.7]
[1747549032156,9.99394436,169.76,169.71,37.4]
[1747549033451,15.88463129,169.76,169.71,43.29236769]
[1747549034651,7.963,169.81,169.72,44.64964886]
[1747549034829,16.44074436,169.81,169.75,26.0]
[1747549035544,9.99394436,169.81,169.75,26.0]
[1747549036442,25.79414361,169.82,169.76,5.89066918]
[1747549036640,25.79414361,169.82,169.77,18.7]
[1747549038934,9.91157069,169.82,169.77,24.59026862]
[1747549039136,9.99394436,169.84,169.77,24.59026862]
[1747549042272,138.2,169.85,169.78,18.64964886]
[1747549042431,148.19394436,169.85,169.78,18.64964886]
[1747549042631,5.88728336,169.86,169.78,46.26434886]
[1747549042632,9.99394436,169.86,169.78,46.26434886]
[1747549043360,33.963,169.89,169.78,46.26434886]
[1747549043535,9.99394436,169.86,169.78,46.26434886]
[1747549043857,9.99394436,169.86,169.79,5.88962836]
[1747549044049,7.963,169.89,169.82,18.64964886]
[1747549044254,9.99394436,169.9,169.83,18.68]
[1747549044451,6.1613,169.93,169.84,44.64964886]
[1747549044657,16.15524436,169.93,169.84,44.64964886]
[1747549044848,16.15524436,169.93,169.84,46.26434886]
[1747549045458,9.99394436,169.94,169.84,46.26434886]
[1747549046066,9.99394436,169.94,169.85,20.60641742]
[1747549047365,11.62379803,169.95,169.85,20.60641742]
[1747549047537,21.61774239,169.95,169.86,18.64964886]
[1747549047852,5.88376093,169.96,169.88,18.64964886]
[1747549048048,9.99394436,169.95,169.89,18.68]
[1747549049560,9.99394436,169.95,169.9,5.88581518]
[1747549050243,15.87814035,169.95,169.89,24.56615342]
[1747549050443,9.99394436,169.94,169.89,24.56615342]
[1747549051664,9.99394436,169.93,169.89,18.68]
[1747549051872,9.99394436,169.91,169.89,18.68]
[1747549053843,9.99394436,169.91,169.86,5.88711013]
[1747549054042,9.99394436,169.9,169.87,18.68]
[1747549054662,9.99394436,169.88,169.84,8.74881749]
[1747549054861,9.99394436,169.85,169.84,8.74881749]
[1747549056267,15.88149219,169.85,169.84,8.74881749]
[1747549060867,9.99394436,169.85,169.84,8.74881749]
[1747549061071,9.99394436,169.86,169.84,8.74881749]
[1747549061646,9.99394436,169.85,169.84,8.74881749]
[1747549063068,9.99394436,169.86,169.84,8.74881749]
[1747549063265,5.88647284,169.89,169.84,8.74881749]
[1747549063266,9.99394436,169.87,169.84,8.74881749]
[1747549065379,150.30839691,169.9,169.84,14.63666622]
[1747549065566,9.99394436,169.88,169.84,14.63666622]
[1747549065764,9.99394436,169.88,169.84,8.74881749]
[1747549066474,144.4225,169.9,169.84,14.63664024]
[1747549066681,9.99394436,169.9,169.84,14.63664024]
[1747549068974,9.99394436,169.91,169.85,18.66]
[1747549069178,9.99394436,169.92,169.85,18.66]
[1747549070261,9.99394436,169.91,169.85,18.66]
[1747549070466,9.99394436,169.91,169.86,5.88720122]
[1747549072474,5.88483388,169.93,169.86,5.88720122]
[1747549072475,9.99394436,169.92,169.86,5.88720122]
[1747549073293,9.99394436,169.91,169.86,5.88720122]
[1747549073764,9.99394436,169.9,169.85,24.5474334]
[1747549076365,15.87941894,169.91,169.85,24.5474334]
[1747549077191,9.99394436,169.91,169.85,24.5474334]
[1747549078487,5.88477608,169.93,169.85,24.5474334]
[1747549078684,9.99394436,169.93,169.85,24.5474334]
[1747549079692,6.0969,169.94,169.87,5.88685465]
[1747549079876,9.99394436,169.93,169.87,5.88685465]
[1747549081273,9.99394436,169.91,169.86,5.88709737]
[1747549081480,9.99394436,169.91,169.86,24.54709737]
[1747549081696,9.99394436,169.91,169.86,18.66]
[1747549081873,9.99394436,169.9,169.85,5.88749473]
[1747549082892,9.99394436,169.89,169.84,40.63671036]
[1747549083214,9.99394436,169.89,169.84,34.74881749]
[1747549084216,9.99394436,169.89,169.84,40.63669528]
[1747549085222,15.88026094,169.89,169.84,34.74881749]
[1747549086990,9.99394436,169.89,169.84,40.63666659]
[1747549087701,9.99394436,169.91,169.84,40.63666659]
[1747549087917,9.99394436,169.92,169.84,40.63666659]
[1747549088300,18.64,169.93,169.84,55.35640281]
[1747549088500,18.64,169.93,169.85,18.64964886]
[1747549088709,28.63394436,169.93,169.85,18.64964886]
[1747549089219,18.64,169.93,169.86,20.60520428]
[1747549089397,9.99394436,169.94,169.87,18.64964886]
[1747549089914,145.62315418,169.96,169.87,18.64964886]
[1747549090207,9.99394436,169.95,169.87,18.64964886]
[1747549090418,9.99394436,169.95,169.88,5.88650812]
[1747549090618,9.99394436,169.95,169.89,18.64]
[1747549092521,9.99394436,169.95,169.9,5.88581518]
[1747549095218,9.99394436,169.96,169.9,5.88581518]
[1747549097725,11.99031619,169.98,169.9,5.88581518]
[1747549098027,9.99394436,169.96,169.9,5.88581518]
[1747549099804,9.99394436,169.97,169.9,5.88581518]
[1747549100737,9.99394436,169.97,169.9,20.60035314]
[1747549100915,156.84,170.0,169.91,18.64964886]
[1747549101251,9.99394436,169.99,169.91,18.64964886]
[1747549102328,9.99394436,169.98,169.91,18.64964886]
[1747549102515,9.99394436,169.96,169.9,31.88581518]
[1747549103737,9.99394436,169.97,169.9,31.88581518]
[1747549104111,5.88277475,169.99,169.9,31.88581518]
[1747549104441,9.99394436,169.96,169.89,5.88605252]
[1747549104607,9.99394436,169.9,169.87,4.19781792]
[1747549104814,9.99394436,169.89,169.87,4.19781792]
[1747549105031,9.99394436,169.89,169.85,18.64]
[1747549105237,9.99394436,169.89,169.85,24.52750466]
[1747549105439,9.99394436,169.89,169.84,14.63659904]
[1747549108127,9.99394436,169.91,169.84,14.63659904]
[1747549109326,9.99394436,169.9,169.84,14.63659904]
[1747549111345,9.99394436,169.91,169.84,29.35633526]
[1747549111536,31.88418332,169.95,169.85,18.64964886]
[1747549111745,9.99394436,169.94,169.86,26.0]
[1747549112227,9.99394436,169.94,169.87,5.88685465]
[1747549112430,9.99394436,169.93,169.87,5.88685465]
[1747549113563,5.88417149,169.95,169.87,5.88685465]
[1747549113855,9.99394436,169.93,169.87,5.88685465]
[1747549115281,9.99394436,169.91,169.86,5.88708982]
[1747549115575,9.99394436,169.89,169.84,27.38881749]
[1747549115732,9.99394436,169.89,169.84,14.63664337]
[1747549115939,9.99394436,169.88,169.84,8.74881749]
[1747549116653,5.88625577,169.89,169.84,8.74881749]
[1747549116839,15.88020013,169.89,169.84,8.74881749]
[1747549117044,9.99394436,169.88,169.84,8.74881749]
[1747549117558,9.99394436,169.87,169.84,8.74881749]
[1747549118347,9.99394436,169.88,169.84,8.74881749]
[1747549118861,9.99394436,169.87,169.84,8.74881749]
[1747549121460,5.8866144,169.88,169.84,8.74881749]
[1747549121667,9.99394436,169.87,169.84,8.74881749]
[1747549124937,15.88081833,169.87,169.84,8.74881749]
[1747549125246,9.99394436,169.86,169.84,8.74881749]
[1747549125659,15.88123524,169.86,169.84,8.74881749]
[1747549125846,9.99394436,169.85,169.84,8.74881749]
[1747549127164,15.88149219,169.85,169.84,8.74881749]
[1747549128044,9.99394436,169.85,169.84,8.74881749]
[1747549130539,15.88149219,169.85,169.84,8.74881749]
[1747549130868,9.99394436,169.85,169.84,8.74881749]
[1747549131046,15.88149219,169.85,169.84,8.74881749]
[1747549132268,9.99394436,169.85,169.84,8.74881749]
[1747549134959,5.88721581,169.86,169.84,8.74881749]
[1747549135159,9.99394436,169.85,169.84,8.74881749]
[1747549137048,15.88149219,169.85,169.84,8.74881749]
[1747549144077,5.88754783,169.85,169.84,8.74881749]
[1747549144379,15.88149219,169.85,169.84,8.74881749]
[1747549148984,34.53114105,169.85,169.84,8.74881749]
[1747549149286,34.53114105,169.85,169.76,18.64]
[1747549149287,15.88149219,169.85,169.76,18.64]
[1747549149488,9.99394436,169.82,169.76,18.64]
[1747549150221,9.99394436,169.82,169.76,24.53057569]
[1747549150904,15.88219988,169.83,169.76,24.53057569]
[1747549154321,9.99394436,169.82,169.76,24.53057569]
[1747549156213,9.99394436,169.8,169.75,46.1265]
[1747549156401,9.99394436,169.8,169.73,10.55011792]
[1747549156402,9.99394436,169.76,169.73,22.83781792]
[1747549156605,9.99394436,169.75,169.73,4.19781792]
[1747549156910,9.99394436,169.74,169.73,4.19781792]
[1747549157989,15.88553799,169.74,169.71,18.64]
[1747549158189,9.99394436,169.73,169.71,18.64]
[1747549158721,9.99394436,169.73,169.69,11.7436133]
[1747549158906,9.99394436,169.72,169.69,11.7436133]
[1747549163108,15.8860454,169.72,169.69,11.7436133]
[1747549166027,9.99394436,169.72,169.69,11.7436133]
[1747549166697,5.89174126,169.73,169.69,11.7436133]
[1747549166896,9.99394436,169.72,169.69,11.7436133]
[1747549168116,15.88601583,169.72,169.69,11.7436133]
[1747549168319,9.99394436,169.7,169.69,11.7436133]
[1747549168692,9.99394436,169.71,169.69,11.7436133]
[1747549169104,15.8863922,169.71,169.69,11.7436133]
[1747549169425,9.99394436,169.71,169.69,11.7436133]
[1747549173831,15.88641225,169.71,169.69,11.7436133]
[1747549174128,9.99394436,169.71,169.69,11.7436133]
[1747549174527,15.88644799,169.71,169.69,11.7436133]
[1747549174828,9.99394436,169.7,169.69,11.7436133]
[1747549175002,9.99394436,169.71,169.69,11.7436133]
[1747549175627,9.99394436,169.72,169.69,11.7436133]
[1747549176919,9.99394436,169.7,169.69,11.7436133]
[1747549177308,9.99394436,169.71,169.69,11.7436133]
[1747549179332,15.88635674,169.71,169.69,11.7436133]
[1747549183428,9.99394436,169.71,169.69,11.7436133]
[1747549184124,20.61876579,169.75,169.69,11.7436133]
[1747549184309,9.99394436,169.71,169.69,11.7436133]
[1747549185434,6.39936263,169.71,169.69,11.7436133]
[1747549185812,6.39936263,169.73,169.69,11.7436133]
[1747549186030,163.4318,169.76,169.69,11.7436133]
[1747549186341,6.39936263,169.73,169.69,11.7436133]
[1747549188343,14.72549304,169.78,169.69,11.7436133]
[1747549188545,12.28417247,169.79,169.72,1.588]
[1747549188749,12.28417247,169.79,169.73,18.64]
[1747549190746,12.28417247,169.79,169.74,5.89136326]
[1747549193958,9.98838538,169.78,169.72,7.47978192]
[1747549194159,9.98838538,169.78,169.73,18.64]
[1747549194824,9.98838538,169.78,169.72,5.89178192]
[1747549195037,9.98838538,169.78,169.72,24.53178192]
[1747549195239,15.87841217,169.78,169.72,24.53178192]
[1747549195966,9.98838538,169.77,169.72,24.53178192]
[1747549196468,15.87841217,169.78,169.72,24.53178192]
[1747549197457,9.98838538,169.76,169.71,5.89229593]
[1747549197761,9.98838538,169.76,169.72,18.64]
[1747549198464,5.89002679,169.78,169.72,18.64]
[1747549198465,9.98838538,169.77,169.72,18.64]
[1747549198756,15.87887101,169.77,169.72,18.64]
[1747549199060,9.98838538,169.76,169.7,5.89272207]
[1747549199227,9.98838538,169.76,169.7,24.53272207]
[1747549200151,15.87915646,169.76,169.7,24.53272207]
[1747549200533,9.98838538,169.75,169.7,5.89272207]
[1747549200733,9.98838538,169.75,169.7,24.53272207]
[1747549201053,9.98838538,169.75,169.69,37.7436133]
[1747549201233,9.98838538,169.75,169.69,62.27664581]
[1747549202129,5.89136326,169.74,169.69,56.3836133]
[1747549204169,9.98838538,169.72,169.69,11.7436133]
[1747549206465,15.88051214,169.72,169.69,11.7436133]
[1747549206783,9.98838538,169.7,169.65,4.19781792]
[1747549206948,9.98838538,169.67,169.65,4.19781792]
[1747549207848,9.98838538,169.67,169.61,5.89579738]
[1747549208050,9.98838538,169.67,169.62,18.64]
[1747549208354,9.98838538,169.65,169.61,18.64]
[1747549208953,9.98838538,169.65,169.6,4.19781792]
[1747549209134,9.98838538,169.66,169.6,4.19781792]
[1747549210260,9.98838538,169.65,169.59,20.1922]
[1747549212163,15.88342079,169.64,169.59,18.64]
[1747549213075,9.98838538,169.63,169.59,18.64]
[1747549213371,9.98838538,169.63,169.58,26.0]
[1747549213551,9.98838538,169.63,169.58,44.64]
[1747549213973,9.98838538,169.62,169.57,37.26]
[1747549214138,9.98838538,169.62,169.57,18.62]
[1747549214345,5.89587878,169.61,169.57,18.62]
[1747549215975,15.884002,169.62,169.57,18.62]
[1747549216267,5.89561662,169.62,169.57,18.62]
[1747549218366,5.89561662,169.62,169.57,43.15721165]
[1747549218869,5.89561662,169.62,169.57,37.26]
[1747549221463,15.88365376,169.63,169.57,43.15724668]
[1747549221671,15.88330253,169.64,169.57,43.15724668]
[1747549222187,9.98838538,169.63,169.57,43.15724668]
[1747549222466,9.98838538,169.63,169.57,37.26]
[1747549223341,5.89550092,169.63,169.57,43.15718459]
[1747549223769,15.8838863,169.63,169.57,43.15718459]
[1747549224471,5.89483612,169.64,169.57,43.15718459]
[1747549224673,15.8832215,169.64,169.57,43.15718459]
[1747549224971,9.98838538,169.63,169.57,37.26]
[1747549225769,9.98838538,169.62,169.57,37.26]
[1747549226074,15.88421694,169.62,169.57,37.26]
[1747549227359,15.88365755,169.63,169.57,43.15721343]
[1747549227884,15.88365755,169.63,169.57,37.26]
[1747549228098,15.88365755,169.63,169.57,43.15725791]
[1747549230278,15.88365755,169.63,169.57,24.53725791]
[1747549232061,5.89483612,169.64,169.57,24.53725791]
[1747549232375,9.98838538,169.63,169.57,24.53725791]
[1747549232579,9.98838538,169.63,169.57,18.64]
[1747549232982,9.98838538,169.63,169.57,24.53725595]
[1747549233885,15.88375711,169.63,169.57,24.53725595]
[1747549234174,12.24171274,169.65,169.57,24.53725595]
[1747549234383,9.98838538,169.63,169.57,24.53725595]
[1747549235276,9.98838538,169.64,169.57,24.53725595]
[1747549236484,15.88385069,169.63,169.57,24.53725595]
[1747549237363,12.30115188,169.63,169.57,24.53725595]
[1747549238591,6.40568657,169.62,169.57,18.64]
[1747549238887,6.40568657,169.62,169.56,26.0]
[1747549239072,6.40568657,169.62,169.54,1.5859]
[1747549239073,6.40568657,169.58,169.52,17.65432305]
[1747549239272,6.40568657,169.58,169.53,18.7]
[1747549239658,6.40568657,169.58,169.52,56.45539017]
[1747549240272,6.40568657,169.57,169.52,37.75539017]
[1747549240471,6.40568657,169.56,169.52,56.45539017]
[1747549240786,12.30332854,169.56,169.52,56.45539017]
[1747549241367,5.89764197,169.56,169.52,56.45539017]
[1747549241565,10.01706524,169.57,169.52,56.45539017]
[1747549242200,10.01706524,169.56,169.52,11.75539017]
[1747549242497,5.8969218,169.58,169.52,11.75539017]
[1747549242498,10.01706524,169.55,169.52,11.75539017]
[1747549242667,15.91537832,169.54,169.52,11.75539017]
[1747549243393,10.01706524,169.53,169.48,18.72]
[1747549243692,10.01706524,169.49,169.45,4.19781792]
[1747549244576,10.01706524,169.48,169.45,4.19781792]
[1747549244778,15.91714245,169.49,169.45,4.19781792]
[1747549245465,10.01706524,169.49,169.45,4.19781792]
[1747549245665,10.01706524,169.49,169.45,10.09925974]
[1747549245891,10.01706524,169.5,169.45,10.09925974]
[1747549246273,10.01706524,169.5,169.45,4.19781792]
[1747549247177,10.01706524,169.5,169.45,10.09918845]
[1747549247378,10.01706524,169.51,169.45,10.09918845]
[1747549248192,5.89905552,169.52,169.45,10.09918845]
[1747549248499,10.01706524,169.52,169.45,10.09918845]
[1747549248999,10.01706524,169.5,169.45,10.09918845]
[1747549249301,10.01706524,169.51,169.45,10.09918845]
[1747549250294,15.91649086,169.51,169.45,10.09918845]
[1747549250479,10.01706524,169.49,169.45,4.19781792]
[1747549251092,5.89942562,169.51,169.45,10.09920232]
[1747549251296,15.91649086,169.51,169.45,5.9013844]
[1747549251698,15.91649086,169.51,169.44,5.90179414]
[1747549251889,10.01706524,169.5,169.44,5.90179414]
[1747549252883,10.01706524,169.49,169.44,5.90179414]
[1747549253800,10.01706524,169.48,169.43,44.72]
[1747549253982,10.01706524,169.48,169.44,26.0]
[1747549254183,20.64653137,169.52,169.44,26.0]
[1747549254499,10.01706524,169.49,169.44,26.0]
[1747549254900,10.01706524,169.49,169.44,31.90161219]
[1747549255212,10.01706524,169.51,169.44,31.90161219]
[1747549258105,28.65706524,169.52,169.44,31.90161219]
[1747549258430,10.01706524,169.52,169.44,31.90161219]
[1747549260429,10.01706524,169.53,169.44,46.65609755]
[1747549260911,84.8175855,169.54,169.48,26.0]
[1747549261114,84.8175855,169.54,169.48,44.76]
[1747549261290,66.1775855,169.54,169.49,5.9000531]
[1747549262283,72.07589935,169.54,169.49,5.9000531]
[1747549262483,82.09296459,169.54,169.48,50.66035564]
[1747549262688,10.01706524,169.53,169.48,50.66035564]
[1747549265004,76.19465074,169.54,169.48,50.66035564]
[1747549265209,66.1775855,169.54,169.48,50.66035564]
[1747549268220,10.01706524,169.53,169.48,26.0]
[1747549268719,10.01706524,169.53,169.47,24.66066459]
[1747549270021,10.01706524,169.51,169.46,31.90100117]
[1747549270347,15.91643411,169.51,169.46,31.90100117]
[1747549270502,10.01706524,169.5,169.43,18.76]
[1747549270702,10.01706524,169.49,169.44,18.8]
[1747549271900,10.01706524,169.49,169.44,24.70169586]
[1747549272542,10.01706524,169.5,169.44,24.70169586]
[1747549272996,15.91651601,169.51,169.44,24.70169586]
[1747549274330,5.89900896,169.52,169.44,24.70169586]
[1747549274627,10.01706524,169.51,169.44,24.70169586]
[1747549275520,5.89900896,169.52,169.44,24.70169586]
[1747549275717,15.9165201,169.51,169.44,24.70169586]
[1747549279226,10.01706524,169.51,169.44,24.70169586]
[1747549279524,15.91618753,169.52,169.44,24.70169586]
[1747549281924,94.95465074,169.54,169.45,18.64964886]
[1747549282128,66.1775855,169.54,169.48,27.5512]
[1747549282337,66.1775855,169.54,169.49,18.64964886]
[1747549282530,28.77706524,169.58,169.5,18.82]
[1747549283138,18.76,169.58,169.53,26.0]
[1747549283353,185.5287,169.61,169.53,26.0]
[1747549283641,10.01706524,169.61,169.53,26.0]
[1747549284135,10.01706524,169.6,169.54,5.89831308]